bitfinex/quotes_SOLUSD_20260311
["timestamp","ask_amount","ask_price","bid_price","bid_amount"]
[1773190652407,1.95482682,86.159,86.121,1.91596916]
[1773190653020,1.95482682,86.149,86.114,1.91596916]
[1773190654421,1.95482682,86.147,86.121,1.91596916]
[1773190655719,11.60820003,86.146,86.121,1.91596916]
[1773190656030,1.95482682,86.145,86.121,1.91596916]
[1773190657833,11.60846953,86.144,86.116,1.91596916]
[1773190658020,1.95482682,86.143,86.116,1.91596916]
[1773190658534,1.95482682,86.143,86.11,4.14183016]
[1773190658535,1.95482682,86.129,86.074,11.61780493]
[1773190658716,1.95482682,86.099,86.072,1.91596916]
[1773190659124,1.95482682,86.099,86.072,13.53405921]
[1773190659415,1.95482682,86.099,86.073,1.91596916]
[1773190660422,1.95482682,86.098,86.075,1.91596916]
[1773190662623,1.95482682,86.096,86.075,1.91596916]
[1773190663444,1.95482682,86.096,86.07,0.2]
[1773190663740,1.95482682,86.096,86.07,2.11596916]
[1773190664034,1.95482682,86.089,86.07,0.2]
[1773190665734,1.95482682,86.087,86.07,0.2]
[1773190665936,58.06003583,86.118,86.07,0.2]
[1773190665937,1.95482682,86.107,86.081,1.91596916]
[1773190666139,1.95482682,86.105,86.081,1.91596916]
[1773190667225,29.03089753,86.116,86.083,1.91596916]
[1773190667226,1.95482682,86.111,86.083,1.91596916]
[1773190668539,1.96872415,86.115,86.091,1.88280267]
[1773190669529,4.14183016,86.12,86.091,1.88280267]
[1773190669530,1.79448439,86.113,86.091,1.88280267]
[1773190673647,1.79448439,86.111,86.082,1.86414001]
[1773190676343,11.61305307,86.11,86.084,1.86414001]
[1773190676645,1.79448439,86.109,86.084,1.86414001]
[1773190677640,1.79448439,86.109,86.075,1.86414001]
[1773190677842,1.79448439,86.109,86.076,13.48178023]
[1773190678347,1.79448439,86.099,86.076,1.86414001]
[1773190678732,1.79448439,86.097,86.076,1.86414001]
[1773190679849,1.79448439,86.095,86.07,13.68250466]
[1773190681261,1.79448439,86.095,86.07,0.2]
[1773190681434,1.79448439,86.089,86.058,1.86414001]
[1773190681760,1.79448439,86.069,86.05,0.2]
[1773190681931,1.79448439,86.067,86.04,0.2]
[1773190682133,1.79448439,86.049,86.04,0.2]
[1773190682346,1.79448439,86.049,86.03,0.2]
[1773190682548,1.79448439,86.056,86.031,1.86414001]
[1773190682747,40.66552028,86.068,86.03,0.2]
[1773190682748,1.79448439,86.049,86.03,0.2]
[1773190682936,1.79448439,86.049,86.02,0.2]
[1773190684432,40.66552028,86.068,86.022,1.86414001]
[1773190684433,1.79448439,86.047,86.022,1.86414001]
[1773190685255,1.79448439,86.054,86.022,1.86414001]
[1773190688571,4.14183016,86.08,86.02,4.34183016]
[1773190688572,1.79448439,86.069,86.03,6.00597017]
[1773190688755,1.79448439,86.059,86.03,6.00597017]
[1773190688954,1.79448439,86.059,86.03,1.86414001]
[1773190690182,1.79448439,86.059,86.031,1.86414001]
[1773190690559,1.79448439,86.059,86.032,11.62358192]
[1773190690866,1.79448439,86.059,86.033,1.86414001]
[1773190692170,11.62007018,86.058,86.033,1.86414001]
[1773190692474,1.79448439,86.049,86.027,11.62423116]
[1773190692677,1.79448439,86.047,86.021,13.4892083]
[1773190693758,1.79448439,86.047,86.022,1.86414001]
[1773190694757,11.6189047,86.067,86.031,1.86414001]
[1773190694971,1.79448439,86.066,86.031,1.86414001]
[1773190696075,1.79448439,86.066,86.041,1.86414001]
[1773190696979,1.79448439,86.066,86.043,1.86414001]
[1773190698170,11.61912507,86.065,86.043,1.86414001]
[1773190699182,1.79448439,86.065,86.043,1.86414001]
[1773190700380,1.79448439,86.065,86.044,13.52408597]
[1773190701786,11.61858508,86.069,86.045,1.90212512]
[1773190704177,1.95801872,86.069,86.046,13.52381584]
[1773190704366,1.95801872,86.069,86.047,1.90212512]
[1773190705682,1.95801872,86.078,86.048,11.6214206]
[1773190705885,1.95801872,86.078,86.051,1.90212512]
[1773190706187,1.95801872,86.078,86.045,1.90212512]
[1773190708363,1.95801872,86.081,86.051,1.90212512]
[1773190708568,1.95801872,86.089,86.061,1.90212512]
[1773190708867,1.95801872,86.088,86.061,1.90212512]
[1773190709790,1.95801872,86.086,86.061,1.90212512]
[1773190711080,1.95801872,86.086,86.055,13.52247993]
[1773190711981,11.61642562,86.085,86.056,1.90212512]
[1773190712172,1.95801872,86.084,86.056,1.90212512]
[1773190714490,1.95801872,86.082,86.057,13.52233033]
[1773190715791,1.95801872,86.08,86.058,1.90212512]
[1773190716173,1.95801872,86.097,86.071,1.90212512]
[1773190717890,1.95801872,86.109,86.073,1.90212512]
[1773190718891,1.95801872,86.108,86.073,1.90212512]
[1773190719392,1.95801872,86.108,86.081,1.90212512]
[1773190719893,1.95801872,86.106,86.079,11.617147]
[1773190720191,1.95801872,86.106,86.074,13.51990833]
[1773190720496,1.95801872,86.106,86.075,1.90212512]
[1773190720892,1.95801872,86.099,86.075,1.90212512]
[1773190721193,1.95801872,86.099,86.075,13.51990031]
[1773190722791,4.15020937,86.1,86.075,1.90212512]
[1773190722792,11.61467165,86.098,86.075,1.90212512]
[1773190722996,1.95801872,86.097,86.061,1.90212512]
[1773190724680,1.95801872,86.095,86.063,1.90212512]
[1773190725679,1.95801872,86.095,86.062,11.6195301]
[1773190725680,1.95801872,86.107,86.071,1.90212512]
[1773190725876,1.95801872,86.106,86.071,1.90212512]
[1773190727000,1.95801872,86.106,86.07,4.15020937]
[1773190727001,1.95801872,86.104,86.073,1.90212512]
[1773190731504,1.93079918,86.102,86.074,1.82643245]
[1773190732806,1.93079918,86.099,86.074,1.82643245]
[1773190734308,11.61467165,86.098,86.074,1.82643245]
[1773190734605,1.93079918,86.097,86.074,1.82643245]
[1773190735603,1.93079918,86.097,86.068,1.82643245]
[1773190736200,4.15020937,86.09,86.051,11.62101544]
[1773190736382,4.15020937,86.09,86.05,29.05256162]
[1773190736383,1.93079918,86.088,86.052,1.82643245]
[1773190738604,1.93079918,86.086,86.061,1.82643245]
[1773190741811,13.5472248,86.085,86.062,1.82643245]
[1773190742013,1.93079918,86.084,86.062,1.82643245]
[1773190742816,1.93079918,86.084,86.053,11.62066427]
[1773190742997,1.93079918,86.084,86.054,1.82643245]
[1773190744636,1.93079918,86.082,86.056,1.82643245]
[1773190749122,1.93079918,86.079,86.046,1.82643245]
[1773190749331,1.93079918,86.069,86.046,1.82643245]
[1773190750117,1.93079918,86.069,86.047,11.62155566]
[1773190750303,1.93079918,86.069,86.048,1.82643245]
[1773190751817,1.93079918,86.068,86.048,1.82643245]
[1773190757219,1.93079918,86.066,86.048,1.82643245]
[1773190758123,1.93079918,86.076,86.049,11.62128554]
[1773190758324,1.93079918,86.076,86.05,1.82643245]
[1773190758707,1.93079918,86.076,86.051,1.82643245]
[1773190759706,1.91357177,86.074,86.046,1.79327086]
[1773190759901,1.91357177,86.059,86.036,1.79327086]
[1773190760828,1.91357177,86.059,86.036,13.41628671]
[1773190761807,1.91357177,86.057,86.036,13.41628671]
[1773190763607,1.91357177,86.057,86.036,11.62301585]
[1773190763823,1.91357177,86.057,86.036,13.41628671]
[1773190764310,1.91357177,86.055,86.031,1.79327086]
[1773190764509,1.91357177,86.055,86.03,15.7725235]
[1773190764727,1.91357177,86.055,86.031,1.79327086]
[1773190765817,1.91357177,86.053,86.022,1.79327086]
[1773190766020,1.91357177,86.039,86.02,1e-08]
[1773190767915,1.91357177,86.037,86.02,1e-08]
[1773190771637,1.91357177,86.029,86.02,1e-08]
[1773190773235,1.91357177,86.029,86.01,0.2]
[1773190773631,1.91357177,86.035,86.011,1.79327086]
[1773190774942,1.91357177,86.035,86.013,1.79327086]
[1773190778839,11.62128554,86.049,86.021,1.79327086]
[1773190779024,1.91357177,86.048,86.021,1.79327086]
[1773190782037,1.91357177,86.039,86.016,1.79327086]
[1773190782847,40.67544481,86.047,86.011,1.79327086]
[1773190782848,1.91357177,86.029,86.011,1.79327086]
[1773190783925,13.5375953,86.029,86.011,1.79327086]
[1773190784129,1.91357177,86.028,86.011,1.79327086]
[1773190786241,1.91357177,86.033,86.011,1.79327086]
[1773190786449,1.91357177,86.038,86.013,1.79327086]
[1773190788848,1.88984992,86.029,86.01,0.2]
[1773190789349,1.88984992,86.029,86.01,11.82647477]
[1773190789531,1.88984992,86.029,86.011,1.86179036]
[1773190790032,1.82495625,86.036,86.011,1.86179036]
[1773190790945,1.82495625,86.036,86.012,11.6262847]
[1773190791151,1.82495625,86.036,86.013,1.86179036]
[1773190792231,1.82495625,86.051,86.021,1.86179036]
[1773190792437,1.82495625,86.049,86.021,1.86179036]
[1773190792949,1.82495625,86.049,86.022,11.62493315]
[1773190793249,1.82495625,86.048,86.023,1.86179036]
[1773190793552,1.82495625,86.053,86.023,1.86179036]
[1773190794936,62.2342601,86.08,86.013,1.86179036]
[1773190794937,1.82495625,86.039,86.013,1.86179036]
[1773190795134,1.82495625,86.049,86.021,1.86179036]
[1773190795336,1.82495625,86.055,86.039,1.86179036]
[1773190795553,13.44550139,86.055,86.039,1.86179036]
[1773190795759,13.44550139,86.055,86.02,4.14871888]
[1773190795760,1.82495625,86.049,86.021,1.86179036]
[1773190798060,13.44634162,86.049,86.022,11.62493315]
[1773190798254,13.44634162,86.049,86.023,1.86179036]
[1773190799156,4.14871888,86.08,86.031,1.86179036]
[1773190799157,1.82495625,86.056,86.031,1.86179036]
[1773190799362,1.82495625,86.062,86.031,1.86179036]
[1773190800160,1.82495625,86.06,86.033,1.86179036]
[1773190800655,58.0748181,86.096,86.032,11.62358192]
[1773190800656,1.82495625,86.07,86.04,4.14979015]
[1773190800861,1.82495625,86.07,86.041,1.86179036]
[1773190801564,11.61742623,86.078,86.041,1.86179036]
[1773190801748,1.82495625,86.077,86.041,1.86179036]
[1773190801944,1.82495625,86.084,86.051,1.86179036]
[1773190802144,1.82495625,86.084,86.032,98.80044633]
[1773190802145,11.61618322,86.087,86.062,1.86179036]
[1773190802763,11.61575095,86.09,86.062,1.86179036]
[1773190802947,1.82495625,86.079,86.056,11.62028329]
[1773190803442,1.82495625,86.079,86.054,1.86179036]
[1773190803648,4.14979015,86.08,86.031,1.86179036]
[1773190803649,1.82495625,86.059,86.031,1.86179036]
[1773190804562,11.62007018,86.058,86.031,1.86179036]
[1773190804854,1.82495625,86.057,86.033,1.86179036]
[1773190806262,1.82495625,86.057,86.028,1.86179036]
[1773190806465,1.82495625,86.049,86.024,11.62465265]
[1773190807149,1.82495625,86.049,86.024,1.86179036]
[1773190808846,11.62098296,86.052,86.024,1.86179036]
[1773190809045,11.62020788,86.057,86.024,1.86179036]
[1773190809446,11.62020788,86.057,86.031,1.86179036]
[1773190809660,1.82495625,86.056,86.031,1.86179036]
[1773190810671,11.62047527,86.055,86.032,1.86179036]
[1773190810850,13.44543152,86.055,86.032,1.86179036]
[1773190811165,13.44543152,86.055,86.031,11.62358791]
[1773190811166,11.61885507,86.067,86.041,1.86179036]
[1773190811949,1.82495625,86.071,86.051,1.86179036]
[1773190812151,1.82495625,86.076,86.051,1.86179036]
[1773190812950,1.82495625,86.074,86.051,1.86179036]
[1773190814474,1.82495625,86.074,86.046,1.86179036]
[1773190815581,1.82495625,86.074,86.051,1.86179036]
[1773190815749,11.61709933,86.081,86.051,1.86179036]
[1773190815947,1.82495625,86.08,86.051,1.86179036]
[1773190817067,4.14850514,86.12,86.047,11.62155566]
[1773190817068,1.82495625,86.093,86.071,1.86179036]
[1773190817670,1.82495625,86.091,86.066,1.86179036]
[1773190818956,1.82495625,86.089,86.052,1.86179036]
[1773190819156,1.82495625,86.069,86.041,1.86179036]
[1773190819353,4.14850514,86.05,86.024,1.8514299]
[1773190819557,1.76898223,86.049,86.024,1.8514299]
[1773190819963,1.76898223,86.047,86.012,1.8514299]
[1773190820872,1.76898223,86.047,86.021,1.8514299]
[1773190822157,1.76898223,86.039,86.012,11.6262847]
[1773190822858,1.76898223,86.039,86.011,1.8514299]
[1773190824381,1.76898223,86.029,86.01,0.2]
[1773190824677,1.76898223,86.029,86.01,2.0514299]
[1773190826373,1.76898223,86.027,86.01,0.2]
[1773190827158,1.76898223,86.027,86.01,0.52789688]
[1773190827978,1.76898223,86.039,86.02,4.14850514]
[1773190828272,1.76898223,86.039,86.011,40.69246956]
[1773190829076,1.76898223,86.039,86.012,1.47926739]
[1773190830783,29.04949671,86.061,86.021,1.47932241]
[1773190830784,1.76898223,86.048,86.021,1.47932241]
[1773190837674,4.14850514,86.05,86.021,1.47932241]
[1773190837675,11.62155566,86.047,86.022,11.62493315]
[1773190837878,1.76898223,86.046,86.022,11.62493315]
[1773190838272,1.76898223,86.046,86.022,13.10486189]
[1773190839461,1.76898223,86.044,86.022,13.10486189]
[1773190839964,1.76898223,86.044,86.023,1.4800019]
[1773190840682,1.76898223,86.069,86.031,1.48004798]
[1773190841784,1.76898223,86.067,86.033,1.48018825]
[1773190844694,1.76898223,86.065,86.035,1.48036926]
[1773190847271,1.76898223,86.065,86.034,11.62331171]
[1773190847272,1.84156358,86.063,86.037,1.48065384]
[1773190847473,1.84156358,86.063,86.041,1.48065384]
[1773190849588,1.88667416,86.061,86.041,1.48065384]
[1773190850590,1.88667416,86.061,86.012,29.06562139]
[1773190850789,1.88667416,86.059,86.031,1.48098564]
[1773190851487,11.6195301,86.062,86.041,1.48098564]
[1773190851800,1.88667416,86.062,86.036,1.48104459]
[1773190851999,1.88667416,86.062,86.035,11.62310865]
[1773190852382,1.88667416,86.059,86.026,11.624378]
[1773190852684,1.88667416,86.059,86.02,4.14850514]
[1773190852685,1.88667416,86.059,86.027,13.10530209]
[1773190852878,1.88667416,86.059,86.017,1.48107934]
[1773190853080,1.88667416,86.059,86.031,1.48107934]
[1773190853281,1.88667416,86.059,86.04,4.14850514]
[1773190853486,1.88667416,86.059,86.04,5.62958448]
[1773190853686,1.88667416,86.059,86.04,1.48107934]
[1773190854276,1.88667416,86.069,86.042,1.48115816]
[1773190855578,1.88667416,86.059,86.022,1.48118735]
[1773190856579,1.88667416,86.057,86.024,1.48121981]
[1773190856775,1.88667416,86.057,86.02,4.14850514]
[1773190857089,1.88667416,86.049,86.018,13.106619]
[1773190857881,1.88667416,86.049,86.019,1.48127264]
[1773190860480,1.88667416,86.047,86.021,1.48139214]
[1773190860780,1.88667416,86.078,86.041,1.48143801]
[1773190860984,1.88667416,86.077,86.041,1.48143801]
[1773190861203,1.88667416,86.077,86.051,1.48143801]
[1773190861397,1.88667416,86.077,86.06,4.14850514]
[1773190863006,1.88667416,86.077,86.06,15.76829261]
[1773190863195,11.61685419,86.082,86.06,17.24976402]
[1773190863400,1.88667416,86.083,86.061,1.48147141]
[1773190864510,1.88667416,86.082,86.061,1.48147141]
[1773190866010,1.88667416,86.082,86.061,13.10113653]
[1773190867011,13.5025964,86.089,86.062,1.48160432]
[1773190867211,1.88667416,86.088,86.062,1.48160432]
[1773190868208,1.88667416,86.086,86.061,11.61966512]
[1773190868421,1.88667416,86.086,86.06,4.14850514]
[1773190868709,1.88667416,86.086,86.06,15.76820969]
[1773190868892,1.88667416,86.086,86.06,17.24991801]
[1773190870111,1.88667416,86.086,86.061,1.48174731]
[1773190870888,1.88667416,86.084,86.062,11.6195301]
[1773190872196,1.88667416,86.09,86.065,1.48180016]
[1773190873806,1.88667416,86.09,86.061,1.48181261]
[1773190877315,27.55536315,86.094,86.063,1.76041554]
[1773190877809,4.14656923,86.09,86.063,1.76041554]
[1773190878523,4.14656923,86.09,86.058,11.6200449]
[1773190879007,27.55536315,86.094,86.059,1.76041554]
[1773190879199,4.14656923,86.09,86.061,1.76041554]
[1773190879399,1.88667416,86.087,86.063,1.76041554]
[1773190880215,27.55536315,86.094,86.063,1.76041554]
[1773190880414,27.55536315,86.094,86.062,11.6195301]
[1773190880415,46.41467538,86.18,86.088,1.74772228]
[1773190880615,11.60555138,86.166,86.131,1.74772228]
[1773190881389,4.24656923,86.14,86.117,1.74772228]
[1773190881592,4.24656923,86.14,86.09,11.61575095]
[1773190881593,0.1,86.14,86.111,1.74772228]
[1773190881813,0.1,86.14,86.13,4.14656923]
[1773190882695,0.1,86.14,86.131,11.61022163]
[1773190883416,1.88826478,86.14,86.131,11.61022163]
[1773190884505,1.88826478,86.14,86.13,4.14656923]
[1773190885301,0.80833192,86.139,86.091,1.74772228]
[1773190885504,0.80833192,86.129,86.091,1.74772228]
[1773190886301,0.80833192,86.129,86.086,40.65701739]
[1773190886820,0.80833192,86.129,86.09,4.14656923]
[1773190888521,0.80833192,86.129,86.101,1.74772228]
[1773190890915,0.80833192,86.129,86.08,4.14656923]
[1773190890916,0.1,86.14,86.121,1.74772228]
[1773190891215,0.1,86.14,86.13,4.14656923]
[1773190891416,0.80706687,86.151,86.13,4.14656923]
[1773190891607,0.80706687,86.169,86.131,1.74772228]
[1773190892600,0.80706687,86.169,86.141,1.74772228]
[1773190894007,0.80706687,86.169,86.132,11.61008684]
[1773190895423,0.80706687,86.169,86.133,1.74772228]
[1773190895723,0.80706687,86.169,86.14,4.14656923]
[1773190896922,0.80706687,86.169,86.133,1.74772228]
[1773190897226,0.80706687,86.169,86.13,4.14656923]
[1773190897403,0.80706687,86.169,86.132,11.61008684]
[1773190897917,0.80706687,86.169,86.132,13.35780912]
[1773190898126,0.80706687,86.169,86.133,1.74772228]
[1773190898927,0.80706687,86.169,86.141,1.74772228]
[1773190899518,0.80706687,86.169,86.142,11.60873905]
[1773190900424,0.80706687,86.169,86.137,11.60931017]
[1773190901105,0.80706687,86.169,86.137,13.35703245]
[1773190902825,0.80706687,86.169,86.138,1.74772228]
[1773190904120,0.80706687,86.169,86.132,29.0252171]
[1773190904121,0.80706687,86.169,86.141,1.74772228]
[1773190904524,0.80706687,86.169,86.132,29.0252171]
[1773190904525,0.1,86.17,86.151,1.74772228]
[1773190905521,0.1,86.17,86.152,1.74772228]
[1773190905818,0.1,86.19,86.171,1.74772228]
[1773190906609,0.90420797,86.19,86.161,1.74772228]
[1773190907031,0.90420797,86.19,86.163,1.74772228]
[1773190907238,0.90420797,86.19,86.162,11.60604442]
[1773190907821,0.90420797,86.19,86.163,1.74772228]
[1773190910536,0.90420797,86.19,86.162,13.44215228]
[1773190910840,0.90420797,86.19,86.163,1.83610786]
[1773190911140,0.90420797,86.19,86.162,11.60604442]
[1773190911141,0.90420797,86.19,86.17,4.14656923]
[1773190911331,0.90420797,86.19,86.171,1.83610786]
[1773190911332,0.1,86.19,86.171,1.83610786]
[1773190912439,0.1,86.19,86.173,1.83610786]
[1773190913631,0.1,86.2,86.181,1.83610786]
[1773190917844,0.8018835,86.213,86.183,1.83610786]
[1773190919234,0.8018835,86.213,86.185,1.83610786]
[1773190921748,0.8018835,86.213,86.186,11.60281252]
[1773190922128,0.80104236,86.226,86.201,1.83610786]
[1773190922452,0.80104236,86.226,86.187,1.83610786]
[1773190922956,0.80088458,86.219,86.182,13.43940003]
[1773190923247,0.80088458,86.219,86.19,4.14656923]
[1773190923632,0.80088458,86.219,86.191,11.60213943]
[1773190925647,0.80088458,86.219,86.192,1.83610786]
[1773190926153,0.80088458,86.219,86.186,1.83610786]
[1773190930251,0.80088458,86.219,86.188,1.83610786]
[1773190930761,0.79977919,86.229,86.201,1.83610786]
[1773190933263,0.79977919,86.229,86.202,11.60065891]
[1773190933441,0.79977919,86.229,86.203,1.83610786]
[1773190934554,0.79977919,86.229,86.204,11.60038977]
[1773190934952,0.79977919,86.229,86.204,13.43649763]
[1773190935747,0.79977919,86.229,86.205,1.83610786]
[1773190937856,0.1,86.23,86.207,1.83610786]
[1773190938165,0.1,86.23,86.211,1.83610786]
[1773190940258,0.1,86.23,86.212,11.59931332]
[1773190940470,0.1,86.23,86.213,1.68676811]
[1773190943064,0.1,86.23,86.204,1.68676811]
[1773190943451,0.1,86.23,86.206,1.68676811]
[1773190946663,0.7694381,86.229,86.206,1.68676811]
[1773190946867,1.72713389,86.219,86.154,69.64273278]
[1773190947176,1.72713389,86.219,86.17,4.13390839]
[1773190947350,1.72713389,86.219,86.18,4.13390839]
[1773190947742,1.72713389,86.219,86.161,29.01544782]
[1773190947743,1.72713389,86.209,86.161,29.01544782]
[1773190947946,1.72713389,86.209,86.17,4.13390839]
[1773190948771,1.72713389,86.209,86.172,11.60469758]
[1773190948971,1.72713389,86.209,86.173,1.68676811]
[1773190950048,1.72713389,86.209,86.172,11.60469758]
[1773190950049,1.72713389,86.224,86.191,1.68676811]
[1773190950464,1.72713389,86.222,86.191,1.68676811]
[1773190951771,1.72713389,86.222,86.193,1.68676811]
[1773190953865,1.72713389,86.222,86.194,11.60173561]
[1773190954168,1.72713389,86.222,86.195,1.68676811]
[1773190956375,1.72713389,86.222,86.197,1.68676811]
[1773190958088,1.72713389,86.222,86.198,11.60119724]
[1773190958294,1.72713389,86.219,86.197,1.68676811]
[1773190958465,1.72713389,86.219,86.186,1.68676811]
[1773190958976,1.72713389,86.219,86.19,4.13390839]
[1773190959278,1.72713389,86.219,86.191,1.68676811]
[1773190960570,4.13390839,86.22,86.191,1.68676811]
[1773190960571,1.72713389,86.217,86.191,1.68676811]
[1773190960769,1.72713389,86.217,86.193,1.68676811]
[1773190963894,1.72713389,86.217,86.195,1.68676811]
[1773190965201,1.72713389,86.209,86.149,58.03897897]
[1773190965492,0.1,86.23,86.149,58.03897897]
[1773190965493,1.72713389,86.199,86.16,4.13390839]
[1773190965659,1.72713389,86.189,86.15,4.13390839]
[1773190966265,1.72713389,86.189,86.151,40.62634212]
[1773190966466,1.72713389,86.187,86.151,40.62634212]
[1773190966857,1.72713389,86.196,86.16,4.13390839]
[1773190967379,1.72713389,86.196,86.161,1.68676811]
[1773190967776,1.72713389,86.208,86.181,1.68676811]
[1773190968470,1.72713389,86.208,86.183,1.85332351]
[1773190970679,1.72713389,86.208,86.184,11.60308177]
[1773190970987,1.72713389,86.208,86.185,1.84732177]
[1773190971870,1.68827046,86.207,86.185,1.84732177]
[1773190973073,1.68827046,86.207,86.186,11.60281252]
[1773190973259,1.68827046,86.207,86.187,1.84732177]
[1773190974386,1.68827046,86.207,86.188,13.44986504]
[1773190974965,1.68827046,86.207,86.188,1.84732177]
[1773190975676,1.68827046,86.207,86.184,11.60302448]
[1773190976184,1.68827046,86.207,86.184,1.84732177]
[1773190976569,1.68827046,86.218,86.184,1.84732177]
[1773190976768,1.68827046,86.218,86.191,1.84732177]
[1773190978782,1.68827046,86.218,86.192,11.60200482]
[1773190978986,1.68827046,86.218,86.193,1.84732177]
[1773190981066,1.68827046,86.218,86.195,1.84732177]
[1773190983277,1.68827046,86.218,86.196,11.60146642]
[1773190984488,1.68827046,86.223,86.196,1.84732177]
[1773190985381,1.68827046,86.222,86.196,1.84732177]
[1773190988200,1.68827046,86.22,86.197,11.60133183]
[1773190988791,11.59810255,86.221,86.164,1.84732177]
[1773190988792,1.68827046,86.209,86.164,1.84732177]
[1773190988976,1.68827046,86.199,86.165,1.84732177]
[1773190990504,1.68827046,86.197,86.167,1.84732177]
[1773190990801,1.68827046,86.197,86.166,11.60550565]
[1773190991006,11.60119724,86.198,86.141,1.84732177]
[1773190991007,1.68827046,86.179,86.141,1.84732177]
[1773190991179,1.68827046,86.179,86.141,42.47833794]
[1773190991503,1.68827046,86.179,86.142,1.84732177]
[1773190992111,1.68827046,86.179,86.151,1.84732177]
[1773190994599,1.68827046,86.179,86.153,1.84732177]
[1773190995704,1.68827046,86.179,86.155,1.84732177]
[1773190995906,1.68827046,86.177,86.155,1.84732177]
[1773190996081,1.68827046,86.177,86.15,1.84732177]
[1773190996287,1.68827046,86.177,86.152,1.84732177]
[1773190996892,1.68827046,86.177,86.12,4.13860713]
[1773190996893,1.68827046,86.169,86.134,1.84732177]
[1773190997507,1.68827046,86.159,86.127,1.84732177]
[1773190997805,1.68827046,86.159,86.129,1.84732177]
[1773190997806,1.68827046,86.158,86.129,1.84732177]
[1773190998100,1.68827046,86.158,86.128,11.61062604]
[1773190998101,1.68827046,86.158,86.131,1.84732177]
[1773191000708,1.70182979,86.156,86.121,1.80139731]
[1773191000895,1.70182979,86.156,86.123,11.61126486]
[1773191001299,1.70182979,86.156,86.124,1.80139731]
[1773191002006,1.70182979,86.149,86.111,1.80139731]
[1773191002199,1.70182979,86.156,86.131,1.80139731]
[1773191003910,1.70182979,86.156,86.131,13.41149094]
[1773191004109,1.70182979,86.156,86.132,1.80139731]
[1773191006613,1.70182979,86.149,86.118,29.02979716]
[1773191007087,1.70182979,86.149,86.121,11.61156976]
[1773191007288,1.70182979,86.154,86.122,1.80139731]
[1773191008306,1.70182979,86.154,86.124,1.80139731]
[1773191008514,1.70182979,86.153,86.124,1.80139731]
[1773191010206,1.70182979,86.151,86.125,11.61103047]
[1773191011809,1.70182979,86.149,86.122,1.80139731]
[1773191014690,1.70182979,86.147,86.123,1.80139731]
[1773191016300,1.70182979,86.147,86.124,11.61116529]
[1773191016501,1.70182979,86.147,86.124,13.4125626]
[1773191017218,1.70182979,86.147,86.125,1.80139731]
[1773191019094,1.70182979,86.147,86.126,11.61089566]
[1773191021112,1.70182979,86.145,86.109,1.80139731]
[1773191021416,1.70182979,86.145,86.051,46.483988]
[1773191021417,1.70182979,86.119,86.086,1.80139731]
[1773191022812,1.70182979,86.119,86.086,13.41768527]
[1773191023118,1.70182979,86.109,86.09,1e-08]
[1773191023303,1.70182979,86.099,86.09,1e-08]
[1773191023703,1.70182979,86.099,86.08,1e-08]
[1773191024416,1.70182979,86.099,86.081,1.80139731]
[1773191025412,1.70182979,86.097,86.08,1e-08]
[1773191027422,11.61494146,86.096,86.08,1e-08]
[1773191028822,29.03329608,86.109,86.08,1e-08]
[1773191029026,1.68696584,86.107,86.08,1.83404771]
[1773191029229,1.68696584,86.107,86.081,1.8340477]
[1773191030207,1.7694148,86.113,86.081,1.8340477]
[1773191030524,103.8,86.145,86.091,1.68761691]
[1773191030525,1.7694148,86.125,86.091,1.68761691]
[1773191031807,1.7694148,86.123,86.093,1.68761691]
[1773191034319,1.7694148,86.123,86.09,4.13860713]
[1773191034320,11.61143494,86.122,86.094,11.61521128]
[1773191034517,1.7694148,86.132,86.101,1.68761691]
[1773191035324,1.7694148,86.129,86.095,1.68761691]
[1773191035925,1.7694148,86.135,86.101,1.68761691]
[1773191036228,11.60954769,86.136,86.111,1.68761691]
[1773191036429,1.7694148,86.14,86.111,1.68761691]
[1773191037125,1.7694148,86.14,86.113,1.68761691]
[1773191037350,1.7694148,86.139,86.101,1.68761691]
[1773191040432,1.7694148,86.137,86.111,1.68761691]
[1773191041128,11.6084209,86.145,86.121,1.68761691]
[1773191041430,1.7694148,86.158,86.131,1.68761691]
[1773191042337,11.60375497,86.179,86.131,1.68761691]
[1773191042514,1.7694148,86.171,86.141,1.68761691]
[1773191044534,11.60496692,86.17,86.151,1.68761691]
[1773191047637,11.60496692,86.17,86.13,29.02557972]
[1773191047638,1.7694148,86.169,86.14,4.13860713]
[1773191047818,1.7694148,86.169,86.141,1.68761691]
[1773191049637,1.7694148,86.167,86.141,1.68761691]
[1773191050830,1.7694148,86.167,86.141,13.29644904]
[1773191051133,1.7694148,86.167,86.142,1.68761691]
[1773191051933,1.7694148,86.174,86.151,1.68761691]
[1773191052360,1.7694148,86.187,86.161,1.68761691]
[1773191053035,1.7694148,86.187,86.15,4.13860713]
[1773191053239,1.7694148,86.187,86.151,1.68761691]
[1773191054436,11.60281252,86.186,86.161,1.68761691]
[1773191057145,1.7694148,86.187,86.161,1.68761691]
[1773191057632,11.60106265,86.199,86.181,1.68761691]
[1773191058946,1.7694148,86.203,86.181,1.68761691]
[1773191059339,1.7694148,86.203,86.18,4.13764871]
[1773191059534,1.7694148,86.203,86.16,4.13764871]
[1773191059535,1.7694148,86.203,86.17,4.13764871]